bitfinex-derivatives/quotes_ETHF0:USTF0_20250830
["timestamp","ask_amount","ask_price","bid_price","bid_amount"]
[1756575959646,0.1148,4352.2,4352.1,0.3306]
[1756575960446,0.1148,4352.2,4352.1,4.56036999]
[1756575960752,0.3118,4353.4,4353.3,0.0688]
[1756575961048,1.14062382,4353.4,4353.3,0.3068]
[1756575962047,0.3118,4353.9,4353.3,3.4881]
[1756575962249,0.3118,4354.3,4353.3,3.4458]
[1756575962545,0.63577063,4354.2,4354.1,0.0688]
[1756575962843,0.63577063,4354.2,4354.1,0.3068]
[1756575963148,0.3118,4354.9,4354.2,0.0265]
[1756575963443,0.63643365,4354.8,4354.1,0.238]
[1756575963644,0.63643365,4354.7,4354.1,0.238]
[1756575963842,1.22055924,4355.1,4354.6,0.0423]
[1756575963843,0.3118,4355.1,4354.6,0.0423]
[1756575964039,0.63655543,4355.0,4354.9,0.0423]
[1756575964238,0.63655543,4355.0,4354.9,0.0688]
[1756575965944,0.63655543,4355.0,4354.9,0.3068]
[1756575967150,0.63655543,4355.0,4354.9,0.0688]
[1756575967346,4.42835924,4356.0,4354.9,0.2803]
[1756575967552,0.92472231,4355.9,4354.9,0.2803]
[1756575967753,0.63722231,4355.8,4354.9,0.2803]
[1756575967953,0.2875,4355.6,4354.9,0.2803]
[1756575968155,0.63722231,4355.5,4354.9,0.2803]
[1756575968349,0.1909,4354.4,4354.3,3.2078]
[1756575968544,0.4784,4354.4,4354.3,3.4458]
[1756575969944,0.4784,4354.4,4354.3,3.5128]
[1756575971754,0.4784,4354.4,4354.3,3.2078]
[1756575971955,0.4784,4354.4,4354.3,3.4448]
[1756575972454,0.4784,4354.4,4353.7,3.2078]
[1756575972650,0.4784,4353.9,4353.8,0.237]
[1756575972955,0.1909,4353.9,4353.7,3.2078]
[1756575973256,0.1909,4353.9,4353.1,0.0258]
[1756575973257,0.4784,4353.3,4353.2,3.249]
[1756575973456,0.4784,4353.3,4353.2,3.486]
[1756575974058,0.4784,4353.3,4353.2,3.249]
[1756575974259,0.4784,4353.3,4353.2,3.486]
[1756575974458,0.4784,4353.3,4353.2,0.2782]
[1756575975663,0.4784,4353.3,4353.2,0.0412]
[1756575975863,0.4784,4353.3,4353.2,0.2782]
[1756575976063,0.1909,4353.3,4352.6,36.3008]
[1756575976262,0.2875,4354.2,4352.7,0.237]
[1756575976465,0.4784,4352.8,4352.7,0.304]
[1756575976865,0.4784,4352.8,4352.7,0.067]
[1756575977067,0.4784,4352.8,4352.7,0.2782]
[1756575977765,0.2875,4352.8,4352.7,0.304]
[1756575979262,0.4784,4352.8,4352.7,0.304]
[1756575979466,0.2875,4354.2,4352.8,0.0258]
[1756575979657,0.4784,4353.0,4352.9,0.304]
[1756575980064,0.4784,4353.0,4352.9,0.2782]
[1756575980266,0.1909,4353.0,4352.6,36.3008]
[1756575980565,0.4784,4352.7,4352.6,36.3008]
[1756575980971,0.4784,4352.7,4352.6,33.33]
[1756575981765,0.1909,4352.7,4352.1,3.2078]
[1756575981971,0.1909,4352.3,4352.2,0.237]
[1756575982274,0.4784,4352.3,4352.2,0.237]
[1756575982469,0.1909,4352.3,4352.1,3.2078]
[1756575982669,0.4784,4352.2,4352.1,3.2078]
[1756575983069,0.4784,4352.2,4352.1,3.4448]
[1756575983568,0.4784,4352.2,4352.1,0.237]
[1756575984562,0.1909,4352.2,4351.3,3.2078]
[1756575984764,0.4784,4351.5,4351.4,0.3044]
[1756575985172,0.4784,4351.5,4351.4,0.0674]
[1756575985366,0.4784,4351.5,4351.4,0.3044]
[1756575986669,0.4784,4351.5,4351.4,0.0674]
[1756575986879,0.4784,4351.5,4351.4,0.2785]
[1756575987478,0.4784,4351.5,4351.4,0.0415]
[1756575987675,0.4784,4351.4,4351.3,3.2078]
[1756575987877,0.4784,4351.4,4351.3,3.2493]
[1756575988080,0.4784,4351.4,4351.3,3.4863]
[1756575989585,0.4784,4351.4,4351.3,3.2493]
[1756575989785,0.4784,4351.4,4351.3,3.4863]
[1756575991086,0.4784,4351.4,4351.3,3.2078]
[1756575991281,0.4784,4351.4,4351.3,3.4448]
[1756575991585,0.1909,4351.4,4351.2,33.084]
[1756575991778,0.4784,4351.4,4351.3,0.237]
[1756575991984,0.2875,4351.3,4351.2,33.084]
[1756575992282,0.2875,4351.3,4350.7,0.0259]
[1756575992582,0.4784,4350.9,4350.8,0.3044]
[1756575992782,3.2078,4351.8,4350.8,0.2785]
[1756575992980,0.4784,4351.7,4350.9,0.0259]
[1756575993182,0.4784,4351.7,4351.0,0.237]
[1756575993382,0.4784,4351.7,4351.1,0.0259]
[1756575993583,0.4784,4351.7,4351.2,0.237]
[1756575993784,0.4784,4351.6,4351.5,0.0415]
[1756575993982,0.4784,4351.6,4351.5,0.2785]
[1756575996692,0.2875,4352.2,4351.6,0.0259]
[1756575997386,0.4784,4352.2,4352.1,0.0415]
[1756575997583,0.4784,4352.2,4351.6,0.0259]
[1756575997584,0.2869,4352.6,4352.5,0.0416]
[1756575997785,4.8851983,4355.2,4353.2,0.0416]
[1756575997786,3.4029,4353.3,4353.2,0.0416]
[1756575997992,3.6898,4353.3,4353.2,0.3046]
[1756575998188,3.6898,4353.3,4353.2,0.0676]
[1756575998392,3.6898,4353.3,4353.2,0.2276]
[1756576001387,0.482,4353.3,4353.2,0.2276]
[1756576001796,3.6898,4353.8,4353.7,0.0416]
[1756576001996,3.6898,4353.8,4353.7,0.0676]
[1756576002791,0.2869,4354.3,4353.7,0.0416]
[1756576002996,3.4029,4354.4,4354.3,0.0676]
[1756576003295,0.1951,4354.4,4354.3,0.0676]
[1756576003495,0.2869,4354.6,4354.3,0.0676]
[1756576003691,3.2078,4354.9,4354.5,0.0676]
[1756576003692,3.4947,4354.9,4354.5,0.0676]
[1756576003894,3.2078,4354.9,4354.6,0.026]
[1756576004096,0.482,4354.7,4354.6,0.0676]
[1756576005598,0.482,4354.7,4354.6,0.0416]
[1756576007097,0.482,4354.7,4354.4,3.4438]
[1756576007293,0.2869,4354.6,4354.4,3.4438]
[1756576007502,0.482,4354.5,4354.4,3.4854]
[1756576007900,0.482,4354.5,4354.4,3.5114]
[1756576008499,0.1951,4354.5,4353.5,0.41344]
[1756576008699,0.482,4353.7,4353.6,0.69103]
[1756576008998,0.482,4353.7,4353.6,3.92483]
[1756576009904,0.2869,4354.9,4353.7,0.026]
[1756576012096,0.1951,4353.8,4353.7,0.0676]
[1756576012301,0.482,4353.8,4353.7,0.3036]
[1756576013101,0.2869,4354.9,4353.8,0.026]
[1756576013895,0.1951,4354.0,4353.9,0.2776]
[1756576014101,0.482,4354.0,4353.9,0.3036]
[1756576014403,0.482,4354.0,4353.9,0.0676]
[1756576014604,0.482,4354.0,4353.9,0.3036]
[1756576018106,0.482,4354.0,4353.9,0.2776]
[1756576018301,0.482,4354.0,4353.9,0.236]
[1756576018501,0.482,4354.0,4353.9,0.0416]
[1756576018706,0.482,4354.0,4353.9,0.236]
[1756576018904,0.482,4354.0,4353.9,0.2776]
[1756576019209,0.482,4354.0,4353.9,0.3036]
[1756576022410,0.482,4354.0,4353.9,0.236]
[1756576022804,0.2869,4353.9,4353.6,3.2338]
[1756576023006,0.482,4353.7,4353.6,3.2754]
[1756576023205,0.482,4353.7,4353.6,3.5104]
[1756576023907,0.2869,4354.9,4353.7,0.026]
[1756576024111,0.2869,4354.9,4354.2,0.026]
[1756576024311,0.2869,4354.9,4354.3,0.235]
[1756576024519,0.482,4354.5,4354.4,0.0676]
[1756576025610,0.482,4354.5,4354.4,0.48096]
[1756576025913,0.482,4355.5,4355.4,0.0676]
[1756576026108,0.482,4355.5,4355.4,0.3026]
[1756576026411,0.482,4355.5,4355.4,0.235]
[1756576026611,3.2078,4356.1,4355.2,3.2078]
[1756576026612,0.1951,4355.3,4355.2,3.2078]
[1756576026810,0.482,4355.3,4355.2,3.4428]
[1756576027909,0.4769,4355.3,4355.2,0.235]
[1756576030516,0.4769,4355.3,4354.7,3.2078]
[1756576030517,0.1951,4355.3,4354.7,3.2078]
[1756576030717,0.1939,4354.9,4354.8,0.235]
[1756576031018,0.4757,4354.9,4354.8,0.2761]
[1756576031317,0.4757,4354.9,4354.8,0.3018]
[1756576032119,0.2818,4354.9,4354.8,0.3018]
[1756576032317,0.2818,4356.0,4354.8,0.3018]
[1756576032618,0.2818,4355.8,4354.8,0.71511]
[1756576032818,3.2078,4356.1,4354.8,0.71511]
[1756576033019,0.86981702,4356.0,4354.8,0.71511]
[1756576033220,0.64021702,4355.9,4354.8,0.71511]
[1756576033419,0.2818,4355.7,4354.8,0.71511]
[1756576033615,0.2296,4356.0,4354.8,0.71511]
[1756576033814,0.2818,4355.8,4354.8,0.71511]
[1756576034010,3.2078,4356.1,4354.8,0.71511]
[1756576034011,0.2296,4356.0,4354.8,0.71511]
[1756576034217,0.64017016,4355.9,4354.8,0.71511]
[1756576034416,0.64017016,4355.8,4354.8,0.71511]
[1756576034617,0.2818,4355.6,4354.8,0.71511]
[1756576034815,0.2296,4356.0,4354.8,0.71511]
[1756576035016,0.64008841,4355.9,4354.8,0.71511]
[1756576035216,0.64008841,4355.8,4354.8,0.71511]
[1756576035516,0.64008841,4355.7,4354.8,0.71511]
[1756576035822,0.2818,4356.0,4354.9,0.439]
[1756576036017,0.2818,4355.8,4355.1,0.0257]
[1756576036217,3.2078,4356.1,4355.7,3.2746]
[1756576036218,0.2818,4356.1,4355.7,3.2746]
[1756576036418,0.4757,4356.1,4356.0,0.0668]
[1756576040821,0.4757,4356.1,4356.0,0.0411]
[1756576042924,0.4757,4356.1,4356.0,0.0667]
[1756576043125,0.4757,4356.1,4356.0,0.0411]
[1756576044430,0.4757,4356.1,4355.8,0.2606]
[1756576045027,0.4757,4356.1,4355.9,0.235]
[1756576046031,0.4757,4356.1,4355.9,0.2606]
[1756576047533,0.2818,4356.0,4355.7,3.2078]
[1756576047734,0.1939,4355.9,4355.8,0.235]
[1756576048236,0.4757,4355.9,4355.8,0.235]
[1756576048434,0.4757,4355.9,4355.8,0.276]
[1756576048639,0.4757,4355.9,4355.8,0.3016]
[1756576051239,0.4757,4355.9,4355.8,0.276]
[1756576051836,0.4757,4355.9,4355.8,0.275]
[1756576052031,0.1939,4355.9,4355.7,3.2078]
[1756576052232,0.4757,4355.8,4355.7,3.2078]
[1756576052430,0.1939,4355.8,4355.7,0.234]
[1756576052738,4.1939,4355.8,4355.7,0.235]
[1756576053134,4.4757,4355.8,4355.7,0.235]
[1756576056742,0.4757,4355.8,4355.7,0.235]
[1756576056946,0.4757,4356.4,4356.3,0.1979]
[1756576057140,0.4757,4356.4,4356.3,0.234]
[1756576059342,0.4757,4356.4,4355.8,0.2596]
[1756576059547,0.4757,4356.4,4355.9,0.234]
[1756576059942,0.1939,4356.4,4355.9,0.4936]
[1756576060142,0.197,4356.0,4355.9,0.6814]
[1756576060343,0.4781,4356.0,4355.9,0.6814]
[1756576063052,3.2078,4356.5,4355.9,0.6814]
[1756576063246,0.4781,4356.4,4356.3,0.4474]
[1756576063443,0.4781,4356.4,4356.3,0.6814]
[1756576065354,0.4781,4356.4,4356.3,0.234]
[1756576068554,0.4781,4356.4,4356.3,0.6814]
[1756576068755,0.4781,4356.4,4356.3,0.234]
[1756576070951,0.4781,4356.4,4356.3,0.4218]
[1756576071155,0.4781,4356.4,4356.3,0.6814]
[1756576071356,0.4781,4356.4,4356.3,0.234]
[1756576076861,0.4781,4356.4,4356.3,0.6814]
[1756576079160,0.4781,4356.4,4356.3,0.4218]
[1756576079362,0.4781,4356.4,4356.3,0.6814]
[1756576081762,0.2811,4356.7,4356.3,0.4218]
[1756576081967,0.2811,4357.6,4356.5,0.2596]
[1756576082167,0.2811,4357.4,4356.5,0.2596]
[1756576082364,0.2811,4357.4,4356.5,0.67275]
[1756576082569,0.2811,4357.6,4356.6,0.2596]
[1756576082765,0.2811,4357.4,4356.6,0.2596]
[1756576083068,0.4781,4356.7,4356.6,0.4474]
[1756576083773,0.4781,4356.7,4356.6,0.234]
[1756576084161,0.4781,4356.7,4356.6,0.4218]
[1756576084360,0.4781,4356.7,4356.6,0.6814]
[1756576084559,0.4781,4356.7,4356.6,0.4218]
[1756576087970,0.4781,4356.7,4356.6,0.6809]
[1756576100683,0.2811,4356.7,4356.6,0.6809]
[1756576100989,1.64111767,4358.9,4356.6,0.6809]
[1756576100990,0.5075,4358.1,4358.0,0.4519]
[1756576101174,0.5075,4358.1,4358.0,0.6859]
[1756576101581,0.3112,4358.1,4358.0,0.6859]
[1756576102086,0.3112,4358.1,4358.0,0.86957147]
[1756576102477,3.2078,4359.3,4358.0,0.86957147]
[1756576102691,0.1963,4358.2,4358.1,0.4519]
[1756576102881,0.5075,4358.2,4358.1,0.4519]
[1756576106186,0.5075,4358.2,4358.1,0.6859]
[1756576111388,0.3112,4359.2,4358.1,0.4264]
[1756576111588,0.3112,4359.1,4358.3,0.2595]
[1756576111788,0.54062,4359.1,4358.4,0.234]
[1756576111988,0.5075,4358.5,4358.4,0.4264]
[1756576112390,0.5075,4358.5,4358.4,0.6859]
[1756576113183,0.5075,4358.5,4358.4,3.8937]
[1756576113583,0.3112,4358.5,4358.4,3.8937]
[1756576113892,0.1963,4358.8,4358.7,0.4519]
[1756576114191,0.5075,4358.8,4358.7,0.6859]
[1756576115089,0.3112,4358.8,4358.7,1.09885]
[1756576115389,3.4041,4359.3,4359.2,0.4519]
[1756576115584,0.1963,4359.3,4359.2,0.6859]
[1756576115891,0.5075,4359.3,4359.2,0.6859]
[1756576116391,0.3112,4359.9,4359.3,0.4519]
[1756576116580,0.5075,4359.4,4359.3,0.4519]
[1756576116787,0.5075,4359.4,4359.3,0.6859]
[1756576119793,3.2078,4360.0,4358.9,3.4672]
[1756576119994,0.4953,4359.0,4358.9,3.4672]
[1756576120295,0.4953,4359.0,4358.9,3.9055]
[1756576120794,0.289,4359.9,4359.1,0.41291]
[1756576120989,3.2078,4360.0,4359.2,0.234]
[1756576120990,3.43719,4360.0,4359.2,0.234]
[1756576121196,0.4953,4359.4,4359.3,0.4637]
[1756576122597,0.4953,4359.4,4359.2,0.234]
[1756576122890,0.4953,4359.4,4358.9,3.4672]
[1756576122891,0.289,4359.3,4359.1,0.233]
[1756576123095,0.4953,4359.2,4359.1,0.233]
[1756576123693,0.2063,4359.0,4358.9,3.2078]
[1756576123895,0.4953,4359.0,4358.9,3.4408]
[1756576126102,0.289,4359.9,4359.0,0.2594]
[1756576126301,0.4953,4359.1,4359.0,0.4637]
[1756576127503,0.4953,4359.1,4359.0,0.6967]
[1756576128301,0.4953,4359.1,4359.0,0.4637]
[1756576128500,0.4953,4359.1,4359.0,0.6967]
[1756576129606,0.289,4359.9,4359.0,0.4373]
[1756576129800,0.289,4359.9,4359.3,0.2594]
[1756576129999,0.289,4359.9,4359.4,0.233]
[1756576130200,0.2063,4359.5,4359.4,0.4924]
[1756576130496,0.4953,4359.5,4359.4,0.6967]
[1756576137313,0.1,4360.2,4359.0,0.2594]
[1756576137513,0.1,4360.2,4358.9,3.2078]
[1756576137514,0.4953,4359.2,4359.1,0.233]
[1756576137714,0.4953,4359.2,4359.1,0.6967]
[1756576138009,0.4953,4359.2,4359.1,0.4373]
[1756576138414,0.4953,4359.2,4359.1,0.6967]
[1756576141716,0.4953,4359.2,4359.1,0.233]
[1756576141914,0.4953,4359.1,4359.0,0.4637]
[1756576142114,0.4953,4359.1,4359.0,0.6967]
[1756576145217,0.289,4359.1,4359.0,0.6967]
[1756576145617,0.4953,4359.1,4359.0,0.6967]
[1756576147822,0.297,4359.9,4359.0,0.4373]
[1756576148022,0.4971,4359.7,4359.6,0.4516]
[1756576148318,0.4971,4359.7,4359.6,0.6846]
[1756576149223,0.4971,4359.7,4359.6,0.4257]
[1756576150526,0.4971,4359.7,4359.6,0.6846]
[1756576152129,0.297,4359.6,4359.0,0.67182]
[1756576152427,0.4971,4359.2,4359.1,0.6846]
[1756576152624,0.297,4360.0,4359.2,0.4129]
[1756576152828,0.4971,4359.9,4359.8,0.1927]
[1756576153023,0.4971,4359.9,4359.8,0.6846]
[1756576153224,0.4971,4359.9,4359.8,0.233]
[1756576153424,1.13839619,4359.9,4359.8,0.233]
[1756576155026,0.93829619,4359.9,4359.8,0.6846]
[1756576155226,0.297,4359.9,4359.8,0.6846]
[1756576155419,0.297,4360.1,4360.0,0.4516]
[1756576157224,0.1,4360.2,4360.0,0.4516]
[1756576157432,0.1,4360.2,4360.1,0.4516]
[1756576159030,0.5971,4360.2,4360.1,0.4516]
[1756576161334,0.397,4360.2,4360.1,0.4516]
[1756576162133,0.5971,4360.2,4360.1,0.6846]
[1756576162431,0.3001,4360.2,4359.9,3.2078]
[1756576162631,0.5971,4360.2,4360.1,0.233]
[1756576162831,0.5971,4360.2,4360.1,0.4514]
[1756576163032,0.5971,4360.2,4360.1,0.6844]
[1756576163928,0.1,4360.2,4360.1,0.6844]
[1756576164730,0.1,4360.2,4360.1,4.91375]
[1756576165428,0.4971,4361.2,4361.1,0.4514]
[1756576165734,0.4971,4361.2,4361.1,0.6844]
[1756576166130,0.2001,4361.2,4360.6,0.2587]
[1756576166335,0.2001,4360.7,4360.6,0.4514]
[1756576166633,0.4971,4360.7,4360.6,0.6844]
[1756576168429,0.4971,4360.6,4360.5,3.2078]
[1756576168639,0.297,4360.0,4359.5,3.2078]
[1756576168939,0.2001,4360.1,4359.5,3.2078]
[1756576168940,0.4971,4359.6,4359.5,3.2078]
[1756576169141,0.4971,4359.6,4359.5,3.4408]
[1756576170136,0.4971,4359.6,4359.5,3.6335]
[1756576170525,0.4971,4359.6,4359.5,3.4408]
[1756576171839,0.4971,4359.6,4359.5,3.2078]
[1756576172132,4.2001,4359.6,4359.5,0.233]
[1756576172331,4.4971,4359.6,4359.5,0.233]
[1756576176939,4.4971,4359.6,4359.5,0.6844]
[1756576177337,0.4971,4359.6,4359.5,0.6844]
[1756576177532,0.297,4359.6,4359.5,0.6844]
[1756576177732,0.5023,4359.6,4359.5,0.6844]
[1756576183144,0.5023,4359.6,4358.5,3.2078]
[1756576183145,0.2824,4359.5,4358.6,0.26]
[1756576183346,0.2824,4359.5,4358.8,0.26]
[1756576183551,0.2824,4359.5,4358.9,0.233]
[1756576183746,0.2824,4359.5,4359.0,0.26]
[1756576184847,0.4877,4359.2,4359.1,3.6583]
[1756576190254,0.4877,4359.2,4359.1,3.8913]
[1756576190956,0.4877,4359.2,4359.1,3.6583]
[1756576191156,0.4877,4359.2,4359.1,3.6313]
[1756576191654,0.4877,4359.2,4359.1,3.8913]
[1756576193054,0.4877,4359.2,4359.1,3.2078]
[1756576193255,0.4877,4359.2,4359.1,3.4408]
[1756576193655,0.4877,4359.2,4359.1,3.8913]
[1756576196361,3.2078,4360.1,4359.2,0.26]
[1756576196362,0.2824,4360.0,4359.2,0.26]
[1756576196564,0.84922243,4359.9,4359.8,0.4505]
[1756576196765,1.07860243,4359.9,4359.8,0.6835]
[1756576197061,1.13162243,4359.9,4359.8,0.6835]
[1756576197264,0.2824,4360.0,4359.2,0.4505]
[1756576197570,0.2824,4360.0,4357.7,2.8418654]
[1756576197571,0.4877,4358.9,4358.8,0.4505]
[1756576197866,0.4877,4358.9,4358.8,0.6835]
[1756576200565,0.4877,4358.9,4358.8,0.4235]
[1756576200868,0.4877,4358.9,4358.8,0.233]
[1756576201067,0.2053,4358.7,4358.6,3.2078]
[1756576201370,0.4877,4358.7,4358.6,3.6313]
[1756576201669,0.4877,4358.7,4358.6,3.8913]
[1756576202761,3.2078,4359.5,4358.7,0.26]
[1756576203067,1.13249852,4359.4,4359.3,0.4505]
[1756576203271,1.13249852,4359.4,4359.3,0.233]
[1756576203673,0.4877,4359.3,4359.2,0.233]
[1756576203865,1.13249852,4359.3,4359.2,0.233]
[1756576205068,0.2053,4358.7,4358.6,3.4678]
[1756576205269,0.4877,4358.7,4358.6,3.4408]
[1756576205473,0.4877,4358.7,4358.0,3.2078]
[1756576205665,0.2053,4358.2,4358.1,0.4235]
[1756576205973,0.4877,4358.2,4358.1,0.6835]
[1756576208072,0.4877,4358.2,4358.0,3.2078]
[1756576208073,0.2053,4358.2,4358.0,3.2078]
[1756576208273,0.5068,4357.6,4357.3,0.2594]
[1756576208473,0.5068,4357.6,4357.4,0.233]
[1756576209774,0.5068,4357.6,4357.3,0.2594]
[1756576209975,0.5068,4357.5,4357.4,0.233]
[1756576212573,0.5068,4357.5,4357.0,0.2594]
[1756576212768,0.305,4357.4,4357.1,0.233]
[1756576213076,0.5068,4357.2,4357.1,0.6863]
[1756576215380,0.5068,4357.7,4357.6,0.4533]
[1756576215580,0.5068,4357.7,4357.6,0.6863]
[1756576225290,0.305,4358.2,4357.6,0.4269]
[1756576225589,0.73627,4358.2,4357.9,0.2593]
[1756576225782,0.5068,4358.2,4357.9,0.2593]
[1756576226385,0.5068,4358.2,4357.6,0.233]
[1756576226581,0.5068,4358.2,4358.1,0.4532]
[1756576226786,0.305,4358.2,4358.1,0.6862]
[1756576226986,3.7146,4358.8,4358.7,0.4532]
[1756576229992,0.305,4358.7,4358.0,0.2593]
[1756576230188,3.4096,4358.8,4358.1,0.4269]
[1756576230189,0.5068,4358.2,4358.1,0.4269]
[1756576230388,0.5068,4358.2,4358.1,0.65634]
[1756576230886,0.5068,4358.2,4358.1,0.6862]
[1756576231093,0.5068,4358.2,4358.1,0.4532]
[1756576231298,0.5068,4358.2,4358.1,0.6862]
[1756576232283,0.305,4358.7,4358.1,0.4269]
[1756576232484,0.5068,4358.3,4358.2,0.4532]
[1756576234095,0.5068,4359.2,4359.1,0.4532]
[1756576235392,0.5068,4359.2,4359.1,0.1939]
[1756576235992,0.5068,4359.2,4359.1,0.4532]
[1756576238098,0.5068,4359.2,4359.1,0.1939]
[1756576238297,0.5068,4359.2,4359.0,0.233]
[1756576238497,0.2018,4359.2,4359.1,0.4655]
[1756576239098,3.2078,4359.8,4359.2,0.26]
[1756576239295,3.2078,4359.8,4359.6,0.2055]
[1756576239296,0.4898,4359.7,4359.6,0.2055]
[1756576239495,0.4898,4359.7,4359.6,0.4655]
[1756576240203,0.4898,4359.7,4359.1,0.26]
[1756576240801,0.4898,4359.7,4359.6,0.2055]
[1756576241100,0.4898,4359.7,4359.6,0.4655]
[1756576241300,0.4898,4359.7,4359.6,0.6985]
[1756576241501,3.2078,4359.8,4359.6,0.4385]
[1756576241703,3.2078,4359.8,4359.7,0.4655]
[1756576242001,3.6976,4359.8,4359.7,0.4655]
[1756576246000,0.4898,4359.8,4359.7,0.4655]
[1756576246501,0.1893,4360.3,4360.2,0.2055]
[1756576246806,0.4898,4360.3,4360.2,0.4655]
[1756576247001,0.4898,4360.3,4360.2,0.6985]
[1756576247806,0.3005,4360.6,4360.2,0.4385]
[1756576248008,3.2078,4361.2,4360.3,0.26]
[1756576248009,0.3005,4361.1,4360.3,0.26]
[1756576248404,0.4898,4361.1,4361.0,0.4655]
[1756576248709,0.4898,4361.1,4361.0,0.2055]
[1756576249301,0.4898,4361.1,4361.0,0.4655]
[1756576253810,0.4898,4361.1,4361.0,0.2055]
[1756576254011,0.4898,4361.1,4361.0,0.233]
[1756576255612,0.4898,4360.5,4360.4,3.2078]
[1756576257512,0.4898,4360.5,4360.4,3.4408]
[1756576258612,0.4898,4360.5,4360.4,3.2078]
[1756576260512,0.4898,4360.4,4360.3,0.233]
[1756576261706,0.4898,4360.4,4360.3,0.6985]
[1756576261902,0.4898,4360.4,4360.3,0.4655]
[1756576262108,0.1893,4360.4,4360.3,0.233]
[1756576262711,0.4898,4360.4,4360.3,0.233]
[1756576264912,0.1893,4360.0,4359.9,33.042]
[1756576265210,0.4898,4360.0,4359.6,0.26]
[1756576265413,3.2078,4360.7,4359.9,0.2055]
[1756576265619,0.1893,4360.0,4359.9,0.2055]
[1756576265806,0.4898,4360.0,4359.9,0.4655]
[1756576274329,0.4898,4360.0,4359.9,0.6985]
[1756576276631,0.4898,4360.0,4359.9,0.233]
[1756576278533,0.4898,4360.0,4359.5,3.2078]
[1756576278735,0.2029,4359.6,4359.5,3.2078]
[1756576278934,0.5125,4359.6,4359.5,3.4408]
[1756576280938,0.5125,4359.6,4359.5,3.6479]
[1756576281126,0.5125,4359.6,4359.5,3.9072]
[1756576283335,0.5125,4359.6,4359.5,3.4408]
[1756576284334,0.5125,4359.6,4359.5,3.9072]
[1756576289047,0.5125,4359.6,4359.5,0.6994]
[1756576297252,0.5125,4359.6,4359.5,0.233]
[1756576297752,0.5125,4359.6,4359.5,0.6833]
[1756576301955,3.2078,4360.7,4360.0,0.4503]
[1756576302158,3.2078,4360.7,4360.5,0.191]
[1756576302359,3.2078,4360.7,4360.6,0.6833]
[1756576302559,3.519,4360.7,4360.6,0.6833]
[1756576302760,3.7251,4360.7,4360.6,0.6833]
[1756576306157,3.2078,4361.2,4360.7,0.2593]
[1756576306359,0.5173,4360.8,4360.7,0.4503]
[1756576306558,0.5173,4360.8,4360.7,0.233]
[1756576306759,0.5173,4360.8,4360.4,0.2593]
[1756576306961,0.5173,4360.8,4360.7,0.233]
[1756576314770,3.2078,4361.2,4360.1,3.2078]
[1756576314967,3.2078,4361.2,4358.9,5.371]
[1756576314968,0.2061,4359.7,4359.6,3.3988]
[1756576315174,0.5173,4359.7,4359.6,3.4398]
[1756576316472,0.5173,4359.7,4359.6,3.6308]
[1756576316671,0.5173,4359.7,4359.6,3.8901]
[1756576321280,0.5173,4359.7,4359.6,0.6823]
[1756576321681,0.5173,4359.7,4359.6,0.423]
[1756576322583,3.2078,4360.6,4359.6,0.6823]
[1756576322881,0.5173,4360.7,4360.6,0.191]
[1756576323080,0.5173,4360.7,4360.5,0.232]
[1756576324381,0.5173,4360.7,4359.6,3.2078]
[1756576324382,0.5173,4359.8,4359.7,0.4503]
[1756576324569,0.5173,4359.8,4359.7,0.6823]
[1756576324977,0.5173,4359.8,4359.7,0.4503]
[1756576325178,0.5173,4359.8,4359.7,0.6823]
[1756576325978,3.2078,4360.6,4359.8,0.2593]
[1756576326279,0.3112,4360.5,4359.8,0.2593]
[1756576326478,0.2061,4359.9,4359.8,0.4503]
[1756576326670,0.5173,4359.9,4359.8,0.2593]
[1756576326871,0.5173,4359.9,4359.8,0.191]
[1756576327181,0.2846,4359.8,4359.2,0.2592]
[1756576327381,0.4793,4359.3,4359.2,0.4472]
[1756576327577,0.4793,4359.3,4359.2,0.6792]
[1756576340992,0.4793,4359.3,4359.2,0.232]
[1756576341192,0.4793,4359.2,4358.8,0.2588]
[1756576341394,0.1947,4359.2,4359.1,0.188]
[1756576341597,0.1947,4359.2,4359.1,0.6788]
[1756576341984,0.4793,4359.2,4359.1,0.6788]
[1756576343694,3.2078,4360.1,4359.1,0.6788]
[1756576343893,0.4793,4359.9,4359.8,0.4468]
[1756576344196,0.2846,4360.0,4359.9,0.2588]
[1756576344396,0.4793,4360.0,4359.9,0.4468]
[1756576344996,0.4793,4360.0,4359.8,0.232]
[1756576345599,0.4793,4359.9,4359.8,0.4908]
[1756576345895,0.4793,4359.9,4359.8,0.6788]
[1756576347501,0.4793,4359.9,4359.8,0.42]
[1756576347800,0.4793,4359.9,4359.8,0.6788]
[1756576348200,0.2846,4360.0,4359.9,0.4468]
[1756576348402,0.4793,4360.0,4359.9,0.4468]
[1756576349998,3.4924,4360.1,4359.9,0.188]
[1756576350198,3.4924,4360.1,4360.0,0.4468]
[1756576350399,3.6871,4360.1,4360.0,0.4468]
[1756576351597,3.6871,4360.1,4359.8,0.232]
[1756576352499,3.6871,4360.1,4359.9,0.232]
[1756576352697,3.6871,4360.1,4359.9,0.2588]
[1756576352893,3.6871,4360.1,4360.0,0.232]